fUST/lending_fUST_20241121
["ID","MTS","AMOUNT","RATE_DAILY","PERIOD"]
[342865080,1732189845357,-500.0,0.00021917,2]
[342865082,1732189845367,-500.0,0.00021917,2]
[342865084,1732189845376,-151.0,0.00021917,2]
[342865086,1732189845387,-151.0,0.00021917,2]
[342865088,1732189845396,-151.0,0.00021917,2]
[342865090,1732189845405,-500.0,0.00021917,2]
[342865092,1732189845415,-151.0,0.00021917,2]
[342865094,1732189845424,-151.0,0.00021917,2]
[342865096,1732189845433,-500.0,0.00021917,2]
[342865098,1732189845443,-545.59406399,0.00021917,2]
[342865100,1732189845453,-500.0,0.00021917,2]
[342865102,1732189845462,-500.0,0.00021917,2]
[342865105,1732189845471,-500.0,0.00021917,2]
[342865107,1732189845481,-500.0,0.00021917,2]
[342865109,1732189845490,-500.0,0.00021917,2]
[342865111,1732189845499,-500.0,0.00021917,2]
[342865113,1732189845508,-500.0,0.00021917,2]
[342865115,1732189845518,-500.0,0.00021917,2]
[342865117,1732189845528,-500.0,0.00021917,2]
[342865119,1732189845537,-1634.37,0.00021917,2]
[342865121,1732189845547,-500.0,0.00021917,2]
[342865123,1732189845557,-394.47632288,0.00021917,2]
[342865125,1732189845567,-500.0,0.00021917,2]
[342865127,1732189845578,-509.36035233,0.00021917,2]
[342865129,1732189845587,-500.0,0.00021917,2]
[342865131,1732189845596,-500.0,0.00021917,2]
[342865133,1732189845606,-500.0,0.00021917,2]
[342865135,1732189845616,-546.04290245,0.00021917,2]
[342865137,1732189845625,-500.0,0.00021917,2]
[342865139,1732189845636,-511.32,0.00021917,2]
[342865141,1732189845646,-500.0,0.00021917,2]
[342865144,1732189845655,-500.0,0.00021917,2]
[342865146,1732189845665,-500.0,0.00021917,2]
[342865148,1732189845675,-500.0,0.00021917,2]
[342865150,1732189845684,-500.0,0.00021917,2]
[342865152,1732189845693,-255.89170649,0.00021917,2]
[342865154,1732189845702,-500.0,0.00021917,2]
[342865156,1732189845711,-386.62617846,0.00021917,2]
[342865157,1732189845720,-500.0,0.00021917,2]
[342865159,1732189845730,-500.0,0.00021917,2]
[342865162,1732189845739,-478.981146,0.00021917,2]
[342865163,1732189845749,-500.0,0.00021917,2]
[342865166,1732189845759,-478.981146,0.00021917,2]
[342865167,1732189845769,-478.981146,0.00021917,2]
[342865170,1732189845778,-500.0,0.00021917,2]
[342865172,1732189845788,-500.0,0.00021917,2]
[342865174,1732189845798,-478.981146,0.00021917,2]
[342865176,1732189845808,-478.981146,0.00021917,2]
[342865178,1732189845818,-507.43,0.00021917,2]
[342865180,1732189845827,-500.0,0.00021917,2]
[342865182,1732189845836,-500.0,0.00021917,2]
[342865184,1732189845845,-478.981146,0.00021917,2]
[342865186,1732189845854,-478.981146,0.00021917,2]
[342865188,1732189845863,-478.981146,0.00021917,2]
[342865190,1732189845872,-478.981146,0.00021917,2]
[342865192,1732189845881,-478.981146,0.00021917,2]
[342865193,1732189845894,-521.47314029,0.00021917,2]
[342865196,1732189845904,-500.0,0.00021917,2]
[342865197,1732189845916,-179.693997,0.00021917,2]
[342865200,1732189845926,-547.15369932,0.00021917,2]
[342865202,1732189845935,-179.693997,0.00021917,2]
[342865205,1732189845944,-503.47878367,0.00021917,2]
[342865206,1732189845955,-179.693997,0.00021917,2]
[342865209,1732189845964,-179.693997,0.00021917,2]
[342865211,1732189845974,-500.0,0.00021917,2]
[342865213,1732189845984,-937.95,0.00021917,2]
[342865215,1732189845996,-179.693997,0.00021917,2]
[342865217,1732189846008,-179.693997,0.00021917,2]
[342865220,1732189846019,-179.693997,0.00021917,2]
[342865223,1732189846030,-179.693997,0.00021917,2]
[342865225,1732189846041,-179.693997,0.00021917,2]
[342865227,1732189846050,-179.693997,0.00021917,2]
[342865229,1732189846061,-500.0,0.00021917,2]
[342865231,1732189846070,-503.87319856,0.00021917,2]
[342865233,1732189846080,-2379.0,0.00021917,2]
[342865235,1732189846090,-500.0,0.00021917,2]
[342865237,1732189846099,-500.0,0.00021917,2]
[342865239,1732189846109,-500.0,0.00021917,2]
[342865241,1732189846117,-500.0,0.00021917,2]
[342865243,1732189846127,-445.139115,0.00021917,2]
[342865245,1732189846137,-595.17,0.00021917,2]
[342865247,1732189846147,-445.139115,0.00021917,2]
[342865249,1732189846157,-652.3,0.00021917,2]
[342865251,1732189846167,-500.0,0.00021917,2]
[342865253,1732189846177,-445.139115,0.00021917,2]
[342865255,1732189846187,-445.139115,0.00021917,2]
[342865257,1732189846196,-500.0,0.00021917,2]
[342865259,1732189846206,-445.139115,0.00021917,2]
[342865261,1732189846215,-539.94546652,0.00021917,2]
[342865263,1732189846225,-445.139115,0.00021917,2]
[342865265,1732189846235,-445.139115,0.00021917,2]
[342865267,1732189846244,-445.139115,0.00021917,2]
[342865269,1732189846254,-445.139115,0.00021917,2]
[342865271,1732189846263,-445.139115,0.00021917,2]
[342865273,1732189846273,-500.0,0.00021917,2]
[342865275,1732189846283,-216.893621,0.00021917,2]
[342865277,1732189846293,-216.893621,0.00021917,2]
[342865279,1732189846303,-500.0,0.00021917,2]
[342865281,1732189846313,-216.893621,0.00021917,2]
[342865284,1732189846323,-216.893621,0.00021917,2]
[342865286,1732189846333,-500.0,0.00021917,2]
[342865288,1732189846342,-216.893621,0.00021917,2]
[342865290,1732189846351,-500.0,0.00021917,2]
[342865292,1732189846361,-500.0,0.00021917,2]
[342865294,1732189846370,-216.893621,0.00021917,2]
[342865296,1732189846380,-4701.390094,0.00021917,2]
[342865298,1732189846391,-216.893621,0.00021917,2]
[342865300,1732189846401,-4701.390094,0.00021917,2]
[342865302,1732189846410,-216.893621,0.00021917,2]
[342865304,1732189846420,-216.893621,0.00021917,2]
[342865306,1732189846430,-4701.390094,0.00021917,2]
[342865308,1732189846439,-216.893621,0.00021917,2]
[342865310,1732189846448,-500.0,0.00021917,2]
[342865312,1732189846457,-4701.390094,0.00021917,2]
[342865314,1732189846467,-4701.390094,0.00021917,2]
[342865316,1732189846476,-500.0,0.00021917,2]
[342865318,1732189846485,-500.0,0.00021917,2]
[342865320,1732189846495,-4701.390094,0.00021917,2]
[342865322,1732189846504,-4701.390094,0.00021917,2]
[342865324,1732189846514,-4701.390094,0.00021917,2]
[342865326,1732189846523,-500.0,0.00021917,2]
[342865328,1732189846533,-4701.390094,0.00021917,2]
[342865330,1732189846542,-4701.390094,0.00021917,2]
[342865332,1732189846551,-500.0,0.00021917,2]
[342865334,1732189846560,-500.0,0.00021917,2]
[342865336,1732189846570,-500.0,0.00021917,2]
[342865338,1732189846579,-500.0,0.00021917,2]
[342865340,1732189846588,-500.0,0.00021917,2]
[342865342,1732189846598,-500.0,0.00021917,2]
[342865344,1732189846608,-741.91,0.00021917,2]
[342865346,1732189846617,-500.0,0.00021917,2]
[342865348,1732189846626,-500.0,0.00021917,2]
[342865350,1732189846638,-500.0,0.00021917,2]
[342865352,1732189846647,-500.0,0.00021917,2]
[342865354,1732189846657,-500.0,0.00021917,2]
[342865356,1732189846667,-1337.53,0.00021917,2]
[342865358,1732189846677,-654.63,0.00021917,2]
[342865360,1732189846686,-500.0,0.00021917,2]
[342865362,1732189846696,-329.81574973,0.00021917,2]
[342865364,1732189846705,-500.0,0.00021917,2]
[342865366,1732189846714,-500.0,0.00021917,2]
[342865368,1732189846724,-1324.45,0.00021917,2]
[342865370,1732189846733,-151.0,0.00021917,2]
[342865372,1732189846743,-500.0,0.00021917,2]
[342865374,1732189846753,-151.0,0.00021917,2]
[342865376,1732189846763,-151.0,0.00021917,2]
[342865378,1732189846772,-151.0,0.00021917,2]
[342865380,1732189846781,-151.0,0.00021917,2]
[342865382,1732189846791,-500.0,0.00021917,2]
[342865384,1732189846800,-34.79628433,0.00021917,2]
[342865448,1732189847406,-500.0,0.00019951,2]
[342865450,1732189847416,-465.20371567,0.00021917,2]
[342865452,1732189847425,-500.0,0.00021917,2]
[342865454,1732189847435,-500.0,0.00021917,2]
[342865456,1732189847446,-521.83308685,0.00021917,2]
[342865458,1732189847455,-500.0,0.00021917,2]
[342865460,1732189847465,-500.0,0.00021917,2]
[342865462,1732189847474,-502.42170168,0.00021917,2]
[342865464,1732189847484,-831.9,0.00021917,2]
[342865466,1732189847493,-500.0,0.00021917,2]
[342865468,1732189847502,-650.62,0.00021917,2]
[342865470,1732189847512,-500.0,0.00021917,2]
[342865472,1732189847521,-500.0,0.00021917,2]
[342865474,1732189847531,-501.06551661,0.00021917,2]
[342865476,1732189847540,-500.0,0.00021917,2]
[342865478,1732189847550,-500.0,0.00021917,2]
[342865480,1732189847559,-151.0,0.00021917,2]
[342865482,1732189847568,-151.0,0.00021917,2]
[342865484,1732189847578,-500.0,0.00021917,2]
[342865486,1732189847587,-151.0,0.00021917,2]
[342865488,1732189847596,-5.73307749,0.00021917,2]
[342865495,1732189847785,-145.26692251,0.00021917,2]
[342865497,1732189847794,-151.0,0.00021917,2]
[342865499,1732189847804,-151.0,0.00021917,2]
[342865501,1732189847813,-500.0,0.00021917,2]
[342865503,1732189847823,-151.0,0.00021917,2]
[342865505,1732189847832,-151.0,0.00021917,2]
[342865507,1732189847841,-500.0,0.00021917,2]
[342865509,1732189847850,-500.0,0.00021917,2]
[342865511,1732189847860,-500.0,0.00021917,2]
[342865513,1732189847869,-501.35013941,0.00021917,2]
[342865515,1732189847879,-151.0,0.00021917,2]
[342865517,1732189847890,-171.239916,0.00021917,2]
[342865519,1732189847899,-500.0,0.00021917,2]
[342865521,1732189847908,-502.58845673,0.00021917,2]
[342865523,1732189847920,-500.0,0.00021917,2]
[342865525,1732189847930,-500.52967327,0.00021917,2]
[342865527,1732189847940,-500.0,0.00021917,2]
[342865529,1732189847949,-387.6494364,0.00021917,2]
[342865531,1732189847962,-112.3505636,0.00021917,2]
[342865533,1732189847973,-500.0,0.00021917,2]
[342865535,1732189847982,-100.28004518,0.00021917,2]
[342865558,1732189848199,-168.583134,0.000219,2]
[342865560,1732189848209,-204.068499,0.000219,2]
[342865562,1732189848219,-287.348367,0.00021917,2]
[342865564,1732189848231,-112.37158782,0.00021917,2]
[342865566,1732189848242,-387.62522028,0.00021917,2]
[342865569,1732189848254,-112.37477972,0.00021917,2]
[342865571,1732189848265,-500.0,0.00021917,2]
[342865573,1732189848275,-1.58163344,0.00021917,2]
[342865575,1732189848288,-498.41836656,0.00021917,2]
[342865577,1732189848298,-500.0,0.00021917,2]
[342865579,1732189848307,-500.0,0.00021917,2]
[342865581,1732189848316,-500.0,0.00021917,2]
[342865583,1732189848326,-500.0,0.00021917,2]
[342865585,1732189848335,-500.0,0.00021917,2]
[342865587,1732189848345,-500.0,0.00021917,2]
[342865589,1732189848355,-500.0,0.00021917,2]
[342865591,1732189848365,-500.0,0.00021917,2]
[342865593,1732189848376,-500.0,0.00021917,2]
[342865595,1732189848387,-500.0,0.00021917,2]
[342865597,1732189848399,-500.0,0.00021917,2]
[342865599,1732189848410,-500.0,0.00021917,2]
[342865601,1732189848421,-151.741271,0.00021917,2]
[342865603,1732189848432,-500.0,0.00021917,2]
[342865605,1732189848443,-528.9298318,0.00021917,2]
[342865607,1732189848455,-500.17435335,0.00021917,2]
[342865609,1732189848465,-685.1,0.00021917,2]
[342865611,1732189848475,-500.0,0.00021917,2]
[342865613,1732189848486,-1353.68,0.00021917,2]
[342865615,1732189848495,-599.25,0.00021917,2]
[342865617,1732189848505,-500.0,0.00021917,2]
[342865619,1732189848514,-528.29,0.00021917,2]
[342865621,1732189848524,-501.5081737,0.00021917,2]
[342865623,1732189848533,-889.29,0.00021917,2]
[342865625,1732189848543,-500.0,0.00021917,2]
[342865627,1732189848553,-6446.845228,0.00021917,2]
[342865629,1732189848563,-500.0,0.00021917,2]
[342865631,1732189848576,-6446.845228,0.00021917,2]
[342865633,1732189848585,-6446.845228,0.00021917,2]
[342865635,1732189848595,-6446.845228,0.00021917,2]
[342865637,1732189848605,-6446.845228,0.00021917,2]
[342865639,1732189848615,-500.0,0.00021917,2]
[342865641,1732189848624,-514.30244775,0.00021917,2]
[342865643,1732189848638,-500.0,0.00021917,2]
[342865645,1732189848647,-6446.845228,0.00021917,2]
[342865647,1732189848657,-3277.69,0.00021917,2]
[342865649,1732189848667,-501.43899181,0.00021917,2]
[342865651,1732189848676,-500.0,0.00021917,2]
[342865653,1732189848686,-3277.69,0.00021917,2]
[342865655,1732189848696,-500.0,0.00021917,2]
[342865657,1732189848707,-6446.845228,0.00021917,2]
[342865659,1732189848716,-502.22692997,0.00021917,2]
[342865661,1732189848726,-3277.69,0.00021917,2]
[342865663,1732189848736,-2133.62255412,0.00021917,2]
[342865721,1732189849310,-168.583134,0.000219,2]
[342865723,1732189849320,-204.068499,0.000219,2]
[342865725,1732189849331,-4313.22267388,0.00021917,2]
[342865727,1732189849341,-3277.69,0.00021917,2]
[342865729,1732189849351,-502.78880445,0.00021917,2]
[342865731,1732189849360,-3277.69,0.00021917,2]
[342865733,1732189849370,-6446.845228,0.00021917,2]
[342865735,1732189849381,-3277.69,0.00021917,2]
[342865737,1732189849394,-6446.845228,0.00021917,2]
[342865739,1732189849406,-3277.69,0.00021917,2]
[342865741,1732189849416,-3277.69,0.00021917,2]
[342865743,1732189849426,-1011.07605894,0.00021917,2]
[342865746,1732189849439,-2266.61394106,0.00021917,2]
[342865747,1732189849449,-581.57626746,0.00021917,2]
[342865749,1732189849458,-3277.69,0.00021917,2]
[342865751,1732189849468,-3277.69,0.00021917,2]
[342865753,1732189849478,-1404.52,0.00021917,2]
[342865755,1732189849487,-3277.69,0.00021917,2]
[342865757,1732189849497,-3277.69,0.00021917,2]
[342865760,1732189849507,-3277.69,0.00021917,2]
[342865761,1732189849516,-3277.69,0.00021917,2]
[342865763,1732189849526,-500.0,0.00021917,2]
[342865766,1732189849540,-3277.69,0.00021917,2]
[342865768,1732189849549,-500.0,0.00021917,2]
[342865770,1732189849559,-207.11164942,0.00021917,2]
[342865772,1732189849568,-3046.34814216,0.00021917,2]
[342870413,1732190320800,-167.714887,0.00026301,120]
[342870414,1732190320842,-230.0,0.00027,120]
[342870415,1732190320894,-230.0,0.00028,120]
[342870416,1732190405126,223.563683,0.00013973,2]
[342870418,1732190530543,3405.085113,0.000282,120]
[342870492,1732191032875,-160.0,0.00017,2]
[342870493,1732191032885,-556.701635,0.00019803,2]
[342870494,1732191032895,-467.191012,0.00020228,2]
[342870495,1732191032904,-267.59323517,0.00020335,2]
[342870796,1732191036389,-160.0,0.00020228,2]
[342870798,1732191036398,-32.40676483,0.00020335,2]
[342870800,1732191036408,-300.0,0.00020335,2]
[342870803,1732191036418,-2003.66584749,0.00020335,2]
[342871458,1732191043962,-4076.33415251,0.00020335,2]
[342871461,1732191043971,-24900.0,0.00020336,2]
[342871463,1732191043980,-156.23507472,0.00020347,2]
[342871465,1732191043990,-223.563683,0.00020447,2]
[342871467,1732191043999,-166.049292,0.00020475,2]
[342871469,1732191044008,-844.3340769,0.00020507,2]
[342871471,1732191044017,-188.271475,0.00020772,2]
[342871473,1732191044026,-161.72,0.000209,2]
[342871475,1732191044035,-467.191012,0.00020913,2]
[342871477,1732191044045,-212.5677706,0.00021278,2]
[342871479,1732191044054,-1719.42333206,0.00021387,2]
[342871481,1732191044063,-804.31013119,0.00021475,2]
[342871483,1732191044074,-915.11320084,0.00021475,2]
[342871485,1732191044087,-553.19340106,0.00021487,2]
[342871487,1732191044096,-154.046,0.00021487,2]
[342871489,1732191044105,-1106.0,0.00021487,2]
[342871491,1732191044114,-658.533,0.00021487,2]
[342871493,1732191044123,-2382.0,0.00021487,2]
[342871495,1732191044132,-200.0,0.0002151,5]
[342871497,1732191044142,-1719.42333203,0.00021562,2]
[342871499,1732191044151,-467.191012,0.00021598,2]
[342871501,1732191044159,-1000.0,0.000216,2]
[342871503,1732191044169,-1719.42333203,0.0002165,2]
[342871505,1732191044178,-616.0,0.000217,2]
[342871507,1732191044187,-1000.0,0.00021717,2]
[342871509,1732191044196,-1719.42333203,0.00021737,2]
[342871511,1732191044206,-180.66800994,0.00021816,2]
[342871513,1732191044217,-500.0,0.00021816,2]
[342871515,1732191044226,-500.0,0.00021816,2]
[342871517,1732191044235,-500.0,0.00021816,2]
[342871519,1732191044244,-613.80005119,0.00021816,2]
[342871521,1732191044253,-443.46041661,0.00021816,2]
[342871523,1732191044263,-500.0,0.00021816,2]
[342871525,1732191044279,-500.0,0.00021816,2]
[342871527,1732191044292,-500.0,0.00021816,2]
[342871529,1732191044302,-500.0,0.00021816,2]
[342871531,1732191044311,-500.0,0.00021816,2]
[342871533,1732191044321,-500.0,0.00021816,2]
[342871535,1732191044332,-500.0,0.00021816,2]
[342871537,1732191044341,-497.50230688,0.00021816,2]
[342871539,1732191044350,-500.0,0.00021816,2]
[342871541,1732191044360,-500.0,0.00021816,2]
[342871543,1732191044369,-500.0,0.00021816,2]
[342871545,1732191044378,-235.13457709,0.00021816,2]
[342871547,1732191044387,-423.30224309,0.00021816,2]
[342871549,1732191044396,-183.2385745,0.00021816,2]
[342871551,1732191044405,-240.78809431,0.00021816,2]
[342871553,1732191044414,-330.0,0.00021817,2]
[342871555,1732191044426,-2378.53467,0.00021817,2]
[342871561,1732191044468,-12260.77776382,0.00021817,2]
[342871796,1732191046670,-98083.08306011,0.00021817,2]
[342875672,1732191093371,234.693031,0.00013973,2]
[342877765,1732191313403,43968.71265553,0.0001,2]
[342877774,1732191646016,180.0,0.000244,120]
[342877775,1732191707180,153.0,0.00013699,2]
[342877777,1732191861601,222.958379,0.00013973,2]
[342877849,1732192093463,964.36768139,0.00013,2]
[342877851,1732192102627,917.90473785,0.000125,2]
[342877852,1732192113855,789.58237223,0.000134,2]
[342877874,1732192193637,10000.0,0.00026,60]
[342877875,1732192203134,603.0,0.000241,120]
[342877876,1732192203166,156.0,0.0002401,120]
[342877877,1732192203202,159.1,0.00021,30]
[342877986,1732192233938,-999.7066692,0.000109,2]
[342877988,1732192233950,-180.69785428,0.000109,2]
[342877989,1732192233961,-538.12,0.00010959,2]
[342877990,1732192233971,-448.43,0.00010959,2]
[342877991,1732192233980,-985.57720674,0.00013399,2]
[342877992,1732192233989,-300.0,0.00013399,2]
[342877993,1732192233999,-300.0,0.00013399,2]
[342877994,1732192234009,-459.37493898,0.00013399,2]
[342877995,1732192234032,-40091.62506102,0.00013399,2]
[342877996,1732192234042,-16847.22718585,0.000134,2]
[342877997,1732192234051,-268.04018605,0.00014114,2]
[342877998,1732192234061,-420.0,0.00014688,2]
[342877999,1732192234071,-420.0,0.00014739,2]
[342878000,1732192234081,-562.2515508,0.000149,2]
[342878001,1732192234091,-436.33460741,0.00015,2]
[342878002,1732192234101,-24900.0,0.00015682,2]
[342878003,1732192234111,-587.0,0.00016102,2]
[342878004,1732192234121,-587.0,0.00016213,2]
[342878005,1732192234131,-152.0,0.00016746,2]
[342878006,1732192234141,-8193.9939898,0.00016879,2]
[342878007,1732192234151,-3000.0,0.00016912,2]
[342878008,1732192234162,-250.0,0.00016912,2]
[342878009,1732192234174,-160.0,0.00017,2]
[342878010,1732192234184,-938.774901,0.0001717,2]
[342878011,1732192234194,-493.2677209,0.00017297,2]
[342878012,1732192234204,-2755.9721459,0.00017362,2]
[342878013,1732192234214,-278.2162715,0.00017534,2]
[342878014,1732192234223,-823.0,0.00017651,2]
[342878015,1732192234233,-823.0,0.00017834,2]
[342878016,1732192234243,-3802.7574944,0.0001814,2]
[342878017,1732192234253,-4831.33632473,0.00018163,2]
[342878018,1732192234263,-178.66775489,0.00018263,2]
[342878019,1732192234273,-9821.669313,0.00018363,2]
[342878020,1732192234284,-181.0,0.00018477,2]
[342878021,1732192234295,-178.66775488,0.00018671,2]
[342878022,1732192234305,-3419.20994875,0.00018684,4]
[342878023,1732192234315,-4831.33632473,0.00018711,2]
[342878024,1732192234325,-9999.99806429,0.00018782,2]
[342878025,1732192234335,-30626.73634801,0.00018988,4]
[342878026,1732192234345,-9821.669313,0.00019048,2]
[342878027,1732192234355,-2485.6169864,0.00019078,2]
[342878028,1732192234365,-178.66775488,0.00019078,2]
[342878029,1732192234375,-9999.99806429,0.00019141,2]
[342878030,1732192234389,-37476.4199402,0.00019178,2]
[342878031,1732192234406,-159.80863,0.00019178,2]
[342878032,1732192234424,-500.0,0.00019247,2]
[342878033,1732192234438,-500.0,0.00019247,2]
[342878034,1732192234453,-500.0,0.00019247,2]
[342878035,1732192234469,-500.0,0.00019247,2]
[342878036,1732192234486,-500.0,0.00019247,2]
[342878037,1732192234505,-500.0,0.00019247,2]
[342878038,1732192234520,-500.0,0.00019247,2]
[342878039,1732192234535,-500.0,0.00019247,2]
[342878040,1732192234551,-500.0,0.00019247,2]
[342878041,1732192234568,-500.0,0.00019247,2]
[342878042,1732192234580,-214.72864727,0.00019247,2]
[342878043,1732192234596,-500.0,0.00019247,2]
[342878044,1732192234612,-500.0,0.00019247,2]
[342878045,1732192234632,-500.0,0.00019247,2]
[342878046,1732192234652,-500.0,0.00019247,2]
[342878047,1732192234670,-500.0,0.00019247,2]
[342878048,1732192234686,-500.0,0.00019247,2]
[342878049,1732192234699,-500.0,0.00019247,2]
[342878050,1732192234713,-500.0,0.00019247,2]
[342878051,1732192234732,-500.0,0.00019247,2]
[342878052,1732192234744,-427.19434082,0.00019247,2]
[342878053,1732192234757,-496.25072798,0.00019247,2]
[342878054,1732192234774,-500.0,0.00019247,2]
[342878055,1732192234786,-500.0,0.00019247,2]
[342878056,1732192234798,-500.0,0.00019247,2]
[342878057,1732192234811,-244.34976216,0.00019247,2]
[342878058,1732192234826,-631.42820146,0.00019247,2]
[342878059,1732192234840,-500.0,0.00019247,2]
[342878060,1732192234854,-500.0,0.00019247,2]
[342878061,1732192234869,-500.0,0.00019247,2]
[342878062,1732192234882,-500.0,0.00019247,2]
[342878063,1732192234895,-500.0,0.00019247,2]
[342878064,1732192234908,-500.0,0.00019247,2]
[342878065,1732192234925,-500.0,0.00019247,2]
[342878066,1732192234939,-500.0,0.00019247,2]
[342878067,1732192234952,-500.0,0.00019247,2]
[342878068,1732192234965,-500.0,0.00019247,2]
[342878069,1732192234979,-500.0,0.00019247,2]
[342878070,1732192234993,-500.0,0.00019247,2]
[342878071,1732192235007,-500.0,0.00019247,2]
[342878072,1732192235020,-500.0,0.00019247,2]
[342878073,1732192235033,-500.0,0.00019247,2]
[342878074,1732192235046,-500.0,0.00019247,2]
[342878075,1732192235060,-500.0,0.00019247,2]
[342878076,1732192235072,-500.0,0.00019247,2]
[342878077,1732192235086,-500.0,0.00019247,2]
[342878078,1732192235099,-500.0,0.00019247,2]
[342878079,1732192235111,-500.0,0.00019247,2]
[342878080,1732192235124,-500.0,0.00019247,2]
[342878081,1732192235137,-500.0,0.00019247,2]
[342878082,1732192235151,-500.0,0.00019247,2]
[342878083,1732192235165,-500.0,0.00019247,2]
[342878084,1732192235182,-500.0,0.00019247,2]
[342878085,1732192235196,-422.13932501,0.00019247,2]
[342878086,1732192235211,-500.0,0.00019247,2]
[342878087,1732192235224,-500.0,0.00019247,2]
[342878088,1732192235239,-500.0,0.00019247,2]
[342878089,1732192235252,-500.0,0.00019247,2]
[342878090,1732192235265,-500.0,0.00019247,2]
[342878091,1732192235279,-500.0,0.00019247,2]
[342878092,1732192235294,-500.0,0.00019247,2]
[342878093,1732192235307,-500.0,0.00019247,2]
[342878094,1732192235320,-500.0,0.00019247,2]
[342878095,1732192235333,-500.0,0.00019247,2]
[342878096,1732192235347,-500.0,0.00019247,2]
[342878097,1732192235360,-322.8168867,0.00019247,2]
[342878098,1732192235374,-500.0,0.00019247,2]
[342878099,1732192235387,-500.0,0.00019247,2]
[342878100,1732192235400,-500.0,0.00019247,2]
[342878101,1732192235413,-500.0,0.00019247,2]
[342878102,1732192235429,-500.0,0.00019247,2]
[342878103,1732192235443,-500.0,0.00019247,2]
[342878104,1732192235456,-500.0,0.00019247,2]
[342878105,1732192235469,-500.0,0.00019247,2]
[342878106,1732192235482,-500.0,0.00019247,2]
[342878107,1732192235495,-500.0,0.00019247,2]
[342878108,1732192235507,-500.0,0.00019247,2]
[342878109,1732192235520,-500.0,0.00019247,2]
[342878110,1732192235533,-500.0,0.00019247,2]
[342878111,1732192235546,-500.0,0.00019247,2]
[342878112,1732192235559,-500.0,0.00019247,2]
[342878113,1732192235571,-500.0,0.00019247,2]
[342878114,1732192235582,-500.0,0.00019247,2]
[342878115,1732192235593,-500.0,0.00019247,2]
[342878116,1732192235603,-500.0,0.00019247,2]
[342878117,1732192235612,-500.0,0.00019247,2]
[342878118,1732192235817,-500.0,0.00019247,2]
[342878119,1732192235843,-500.0,0.00019247,2]
[342878120,1732192235853,-500.0,0.00019247,2]
[342878121,1732192235863,-292.08067663,0.00019247,2]
[342878122,1732192235872,-500.0,0.00019247,2]
[342878123,1732192235882,-500.0,0.00019247,2]
[342878124,1732192235892,-500.0,0.00019247,2]
[342878125,1732192235902,-500.0,0.00019247,2]
[342878126,1732192235912,-500.0,0.00019247,2]
[342878127,1732192235923,-500.0,0.00019247,2]
[342878128,1732192235933,-500.0,0.00019247,2]
[342878129,1732192235942,-500.0,0.00019247,2]
[342878130,1732192235952,-500.0,0.00019247,2]
[342878131,1732192235962,-500.0,0.00019247,2]
[342878132,1732192235973,-500.0,0.00019247,2]
[342878133,1732192235983,-500.0,0.00019247,2]
[342878134,1732192235993,-500.0,0.00019247,2]
[342878135,1732192236002,-500.0,0.00019247,2]
[342878136,1732192236012,-500.0,0.00019247,2]
[342878137,1732192236021,-500.0,0.00019247,2]
[342878138,1732192236031,-500.0,0.00019247,2]
[342878139,1732192236040,-500.0,0.00019247,2]